fUST/lending_fUST_20250912
["ID","MTS","AMOUNT","RATE_DAILY","PERIOD"]
[384995421,1757641688657,-324.24859428,0.00014085,2]
[384995422,1757641688686,-1297.34,0.00014085,2]
[384995423,1757641688714,-480.0,0.00014085,2]
[384995424,1757641688741,-480.0,0.00014085,2]
[384995425,1757641688788,-3488.7,0.00014085,2]
[384995426,1757641689355,2387.51,0.00012329,2]
[384995427,1757641691777,-1122.78237546,0.00013804,2]
[384995428,1757641691806,-480.0,0.0001381,2]
[384995429,1757641691838,-489.26253309,0.0001381,2]
[384995430,1757641691868,-2793.3101829,0.00014085,2]
[384995432,1757641696241,2000.0,0.00012828,2]
[384995433,1757641696274,-480.0,0.0001381,2]
[384995434,1757641696413,-480.0,0.0001381,2]
[384995435,1757641696443,-483.18269294,0.00013811,2]
[384995436,1757641696471,-480.0,0.00014084,2]
[384995437,1757641696500,-480.0,0.00014084,2]
[384995438,1757641696530,-229.2998171,0.00014085,2]
[384995439,1757641696560,-768.51,0.00014085,2]
[384995440,1757641696589,-480.0,0.00014085,2]
[384995441,1757641696617,-480.0,0.00014085,2]
[384995442,1757641696647,-624.59,0.00014085,2]
[384995443,1757641696777,-480.0,0.00014085,2]
[384995444,1757641696804,-480.0,0.00014085,2]
[384995445,1757641696834,-162.82125144,0.00014085,2]
[384995446,1757641696866,-493.6789368,0.00014085,2]
[384995447,1757641696894,-480.0,0.00014085,2]
[384995448,1757641696922,-480.0,0.00014085,2]
[384995449,1757641696953,-300.0,0.00014086,2]
[384995450,1757641696982,-300.0,0.00014086,2]
[384995451,1757641697011,-300.0,0.00014086,2]
[384995452,1757641697039,-300.0,0.00014086,2]
[384995453,1757641697068,-300.0,0.00014086,2]
[384995454,1757641697097,-300.0,0.00014086,2]
[384995455,1757641697127,-300.0,0.00014086,2]
[384995456,1757641697157,-300.0,0.00014086,2]
[384995457,1757641697288,-300.0,0.00014086,2]
[384995458,1757641697317,-300.0,0.00014086,2]
[384995459,1757641697347,-300.0,0.00014086,2]
[384995460,1757641697378,-300.0,0.00014086,2]
[384995461,1757641697408,-300.0,0.00014086,2]
[384995462,1757641697439,-300.0,0.00014086,2]
[384995463,1757641697468,-300.0,0.00014086,2]
[384995464,1757641697497,-600.0,0.00014086,2]
[384995465,1757641697528,-480.0,0.00014108,2]
[384995466,1757641697555,-487.0553804,0.00014108,2]
[384995467,1757641697583,-480.0,0.00014108,2]
[384995468,1757641697611,-480.0,0.00014108,2]
[384995469,1757641697640,-265.8992392,0.00014108,2]
[384995470,1757641697996,-214.1007608,0.00014108,2]
[384995471,1757641698026,-480.0,0.00014108,2]
[384995472,1757641698055,-482.05718499,0.00014108,2]
[384995473,1757641698084,-480.0,0.00014108,2]
[384995474,1757641698112,-480.0,0.00014108,2]
[384995475,1757641698141,-480.0,0.00014108,2]
[384995476,1757641698169,-480.0,0.00014109,2]
[384995477,1757641698197,-255.0909443,0.00014109,2]
[384995478,1757641698226,-480.0,0.00014109,2]
[384995479,1757641698255,-485.28480509,0.00014109,2]
[384995480,1757641698283,-480.0,0.00014109,2]
[384995481,1757641698423,-484.57614533,0.00014109,2]
[384995482,1757641700021,480.0,0.0001381,2]
[384995483,1757641700074,480.0,0.00014084,2]
[384995484,1757641700774,1989.59,0.00012329,2]
[384995486,1757641701056,480.0,0.0001381,2]
[384995487,1757641703626,490.92627217,0.0001381,2]
[384995488,1757641704302,1989.59,0.00012205,2]
[384995490,1757641708744,1657.99,0.00012329,2]
[384995491,1757641709211,480.0,0.00013811,2]
[384995492,1757641709464,482.89240978,0.00014085,2]
[384995493,1757641711694,480.0,0.0001381,2]
[384995494,1757641711969,19.86902739,0.00014084,2]
[384995495,1757641711991,460.13097261,0.00014084,2]
[384995496,1757641713035,2369.00819942,0.00014213,2]
[384995497,1757641713649,480.0,0.0001381,2]
[384995498,1757641713761,338.076133,0.00013927,2]
[384995499,1757641713916,480.0,0.00014084,2]
[384995500,1757641714153,480.0,0.00013811,2]
[384995501,1757641714246,232.0399084,0.00013928,2]
[384995502,1757641714390,487.3919481,0.00014085,2]
[384995503,1757641714851,484.22745348,0.00013811,2]
[384995505,1757641719289,1657.99,0.00012329,2]
[384995506,1757641720419,576.43121727,0.0001381,2]
[384995507,1757641723120,831.37,0.0001381,2]
[384995508,1757641723767,831.37,0.00014084,2]
[384995510,1757641724806,291.97416772,0.00014108,2]
[384995511,1757641724829,188.02583228,0.00014108,2]
[384995512,1757641726370,9811.98416772,0.00013487,2]
[384995513,1757641726392,188.01583228,0.00013487,2]
[384995514,1757641729116,298.1326214,0.00013809,2]
[384995515,1757641729201,2369.00819942,0.00014213,2]
[384995516,1757641729596,480.0,0.00013811,2]
[384995517,1757641729832,337.91431296,0.00014085,2]
[384995518,1757641730144,1105.33,0.00012329,2]
[384995519,1757641730377,1013.41,0.0001381,2]
[384995520,1757641730628,1013.41,0.00014084,2]
[384995521,1757641731807,480.0,0.00013811,2]
[384995523,1757641732051,480.0,0.00014085,2]
[384995524,1757641735365,480.0,0.0001381,2]
[384995525,1757641735624,480.0,0.00014084,2]
[384995526,1757641737217,480.0,0.00013811,2]
[384995527,1757641737549,480.0,0.00014085,2]
[384995528,1757641737651,314.78903394,0.00014213,2]
[384995529,1757641737674,2054.21916548,0.00014213,2]
[384995533,1757641741201,921.11,0.00012329,2]
[384995534,1757641743444,481.85114064,0.00013811,2]
[384995536,1757641748228,480.0,0.0001381,2]
[384995537,1757641748494,480.0,0.00014084,2]
[384995538,1757641748718,480.0,0.0001381,2]
[384995539,1757641748796,480.0,0.00014108,2]
[384995540,1757641748957,480.0,0.00014084,2]
[384995541,1757641750401,480.0,0.0001381,2]
[384995542,1757641750610,480.0,0.00014084,2]
[384995543,1757641752021,767.59,0.00012329,2]
[384995544,1757641752080,480.0,0.00013811,2]
[384995545,1757641752363,480.0,0.00014085,2]
[384995546,1757641753038,300.0,0.00014212,2]
[384995552,1757641754324,480.0,0.0001381,2]
[384995553,1757641754594,480.0,0.00014084,2]
[384995555,1757641755346,195.23969388,0.0001381,2]
[384995556,1757641755369,284.76030612,0.0001381,2]
[384995558,1757641755605,480.0,0.00014084,2]
[384995560,1757641759595,480.0,0.0001381,2]
[384995561,1757641759865,480.0,0.00014084,2]
[384995562,1757641760332,480.0,0.00014108,2]
[384995563,1757641760893,480.0,0.00013672,2]
[384995564,1757641760954,480.0,0.0001381,2]
[384995565,1757641761205,480.0,0.00014084,2]
[384995566,1757641762955,639.66,0.00012329,2]
[384995571,1757641763986,1232.83,0.0001381,2]
[384995572,1757641764226,1232.83,0.00014084,2]
[384995574,1757641765162,491.91162964,0.0001381,2]
[384995575,1757641767475,480.0,0.00014108,2]
[384995579,1757641773739,533.05,0.00012329,2]
[384995580,1757641775895,480.0,0.0001381,2]
[384995581,1757641776820,300.0,0.00014212,2]
[384995582,1757641777919,480.0,0.0001381,2]
[384995583,1757641778163,480.0,0.00014084,2]
[384995584,1757641778244,4.96806424,0.00013809,2]
[384995585,1757641778267,475.03193576,0.00013809,2]
[384995586,1757641781535,480.0,0.00013834,2]
[384995587,1757641781794,480.0,0.00014108,2]
[384995588,1757641782619,1000.0,0.00027397,120]
[384995589,1757641784663,154.67636019,0.00014212,2]
[384995590,1757641784848,444.2,0.00012329,2]
[384995592,1757641786824,481.62245868,0.00013811,2]
[384995593,1757641788039,480.0,0.0001381,2]
[384995594,1757641792003,480.0,0.0001381,2]
[384995595,1757641792378,541.17990627,0.0001381,2]
[384995596,1757641792409,480.0,0.00014084,2]
[384995597,1757641794259,480.0,0.00013834,2]
[384995598,1757641794511,480.0,0.00014108,2]
[384995599,1757641795319,370.17,0.00012329,2]
[384995600,1757641797154,2693.59,0.0001381,2]
[384995601,1757641797291,480.0,0.00013811,2]
[384995602,1757641797401,999.5393391,0.00014084,2]
[384995603,1757641797424,1694.0506609,0.00014084,2]
[384995604,1757641797590,480.0,0.00014085,2]
[384995605,1757641801862,300.0,0.00014212,2]
[384995606,1757641802079,482.56579078,0.00013811,2]
[384995607,1757641803551,7043.39354832,0.00013711,2]
[384995608,1757641803575,10000.01,0.00013711,2]
[384995609,1757641803598,10000.01,0.00013711,2]
[384995610,1757641803621,10000.01,0.00013711,2]
[384995611,1757641803644,10000.01,0.00013711,2]
[384995612,1757641803668,10000.01,0.00013711,2]
[384995613,1757641803694,10000.01,0.00013711,2]
[384995614,1757641803718,10000.01,0.00013711,2]
[384995615,1757641803742,10000.01,0.00013711,2]
[384995616,1757641803766,10000.01,0.00013711,2]
[384995617,1757641803789,10000.01,0.00013711,2]
[384995618,1757641803813,10000.01,0.00013711,2]
[384995619,1757641803838,10000.01,0.00013711,2]
[384995620,1757641803862,10000.01,0.00013711,2]
[384995621,1757641803889,10000.01,0.00013711,2]
[384995622,1757641803915,10000.01,0.00013711,2]
[384995623,1757641803939,10000.01,0.00013711,2]
[384995624,1757641803963,10000.01,0.00013711,2]
[384995625,1757641803988,10000.01,0.00013711,2]
[384995626,1757641804013,10000.01,0.00013711,2]
[384995627,1757641804037,3113.94829225,0.00013711,2]
[384995629,1757641805856,308.48,0.00012329,2]
[384995630,1757641806806,-480.0,0.0001381,2]
[384995631,1757641806834,-485.13051004,0.00013811,2]
[384995632,1757641807568,480.0,0.00013811,2]
[384995633,1757641807799,480.0,0.00014085,2]
[384995634,1757641808370,480.0,0.0001381,2]
[384995635,1757641808600,480.0,0.00014084,2]
[384995636,1757641810368,480.0,0.0001381,2]
[384995637,1757641810570,2811.94,0.0001381,2]
[384995638,1757641810610,480.0,0.00014084,2]
[384995639,1757641811680,499.29,0.0001381,2]
[384995640,1757641811765,1878.51897992,0.00014084,2]
[384995641,1757641811790,933.42102008,0.00014084,2]
[384995642,1757641811928,499.29,0.00014084,2]
[384995644,1757641815508,482.38488293,0.00013811,2]
[384995645,1757641816398,257.06,0.00012329,2]
[384995646,1757641817367,480.0,0.00014108,2]
[384995647,1757641820301,597.41,0.0001381,2]
[384995648,1757641820582,597.41,0.00014084,2]
[384995649,1757641821142,629.86868674,0.0001381,2]
[384995650,1757641821182,416.21419432,0.0001381,2]
[384995651,1757641822112,1000.0,0.00027397,120]
[384995652,1757641825628,2400.0,0.00014212,2]
[384995653,1757641826779,214.22,0.00012329,2]
[384995654,1757641827047,480.0,0.00013811,2]
[384995655,1757641827289,480.0,0.00014085,2]
[384995656,1757641829876,521.35275739,0.0001381,2]
[384995657,1757641830621,480.0,0.0001381,2]
[384995658,1757641830786,480.0,0.0001381,2]
[384995659,1757641831024,51.37845854,0.00014084,2]
[384995660,1757641831047,428.62154146,0.00014084,2]
[384995732,1757641832768,7142.53,0.0001381,2]
[384995733,1757641833026,2428.85845854,0.00014084,2]
[384995734,1757641833053,4713.67154146,0.00014084,2]
[384995735,1757641835293,480.0,0.0001381,2]
[384995736,1757641837442,178.52,0.00012329,2]
[384995737,1757641837803,-300.0,0.00014356,2]
[384995738,1757641837813,-300.0,0.00014356,2]
[384995739,1757641837823,-300.0,0.00014356,2]
[384995740,1757641837832,-300.0,0.00014356,2]
[384995741,1757641837842,-1200.0,0.00014356,2]
[384995742,1757641837851,-480.0,0.00014357,2]
[384995743,1757641837860,-487.66674949,0.00014357,2]
[384995744,1757641837870,-480.0,0.00014357,2]
[384995746,1757641837880,-480.0,0.00014357,2]
[384995748,1757641837893,-441.34144993,0.00014357,2]
[384995750,1757641837902,-250.93480568,0.00014357,2]
[384995752,1757641837911,-500.0,0.00014357,2]
[384995754,1757641837920,-428.86003384,0.00014357,2]
[384995756,1757641837931,-500.0,0.00014357,2]
[384995758,1757641837940,-434.77330614,0.00014357,2]
[384995760,1757641837949,-480.0,0.00014358,2]
[384995762,1757641837958,-480.0,0.00014358,2]
[384995764,1757641837968,-480.0,0.00014358,2]
[384995766,1757641837977,-480.0,0.00014358,2]
[384995768,1757641837986,-480.0,0.00014358,2]
[384995770,1757641837996,-1576.27,0.00014358,2]
[384995772,1757641838005,-504.08260425,0.00014358,2]
[384995774,1757641838014,-933.28,0.00014358,2]
[384995776,1757641838023,-480.0,0.00014358,2]
[384995778,1757641838032,-488.40162276,0.00014358,2]
[384995780,1757641838042,-480.0,0.00014358,2]
[384995782,1757641838051,-756.37,0.00014358,2]
[384995784,1757641838061,-81.89779519,0.00014358,2]
[384995787,1757641838073,-398.10220481,0.00014358,2]
[384995789,1757641838082,-480.0,0.00014358,2]
[384995791,1757641838090,-480.0,0.00014358,2]
[384995792,1757641838100,-1260.59,0.00014358,2]
[384995794,1757641838109,-480.0,0.00014358,2]
[384995796,1757641838118,-480.0,0.00014358,2]
[384995798,1757641838128,-480.0,0.00014358,2]
[384995800,1757641838137,-598.17357571,0.00014358,2]
[384995801,1757641838146,-380.87697367,0.00014358,2]
[384995802,1757641838156,-480.0,0.00014358,2]
[384995803,1757641838165,-480.0,0.00014358,2]
[384995804,1757641838174,-480.0,0.00014358,2]
[384995806,1757641838184,-831.37,0.00014358,2]
[384995808,1757641838193,-1013.41,0.00014358,2]
[384995810,1757641838202,-480.0,0.00014358,2]
[384995812,1757641838211,-480.0,0.00014358,2]
[384995814,1757641838220,-480.0,0.00014358,2]
[384995816,1757641838230,-480.0,0.00014358,2]
[384995818,1757641838239,-480.0,0.00014358,2]
[384995820,1757641838248,-480.0,0.00014358,2]
[384995822,1757641838257,-480.0,0.00014358,2]
[384995824,1757641838266,-480.0,0.00014358,2]
[384995826,1757641838275,-1232.83,0.00014358,2]
[384995828,1757641838283,-480.0,0.00014358,2]
[384995830,1757641838292,-480.0,0.00014358,2]
[384995832,1757641838301,-2693.59,0.00014358,2]
[384995834,1757641838310,-480.0,0.00014358,2]
[384995836,1757641838319,-480.0,0.00014358,2]
[384995838,1757641838327,-2811.94,0.00014358,2]
[384995840,1757641838336,-499.29,0.00014358,2]
[384995842,1757641838346,-597.41,0.00014358,2]
[384995844,1757641838356,-480.0,0.00014358,2]
[384995846,1757641838365,-7142.53,0.00014358,2]
[384995848,1757641838375,-4737.61996886,0.00014358,2]
[384995850,1757641838384,-480.0,0.00014359,2]
[384995852,1757641838393,-480.0,0.00014359,2]
[384995854,1757641838402,-480.0,0.00014359,2]
[384995856,1757641838412,-480.0,0.00014359,2]
[384995858,1757641838421,-480.0,0.00014359,2]
[384995860,1757641838430,-480.0,0.00014359,2]
[384995862,1757641838439,-480.0,0.00014359,2]
[384995864,1757641838448,-480.0,0.00014359,2]
[384995866,1757641838458,-480.0,0.00014359,2]
[384995868,1757641838467,-480.0,0.00014359,2]
[384995870,1757641838477,-480.0,0.00014359,2]
[384995872,1757641838486,-480.0,0.00014359,2]
[384995874,1757641838495,-480.0,0.00014359,2]
[384995876,1757641838504,-480.0,0.00014359,2]
[384995890,1757641838624,-480.0,0.00014359,2]
[384995892,1757641838634,-480.0,0.00014359,2]
[384995894,1757641838643,-594.16721797,0.00014359,2]
[384995896,1757641838652,-480.0,0.00014359,2]
[384995898,1757641838661,-829.62,0.00014359,2]
[384995900,1757641838670,-480.0,0.00014359,2]
[384995902,1757641838679,-480.0,0.00014359,2]
[384995904,1757641838688,-480.0,0.00014359,2]
[384995906,1757641838697,-480.0,0.00014359,2]
[384995908,1757641838706,-768.51,0.00014359,2]
[384995910,1757641838715,-488.6933285,0.00014359,2]
[384995912,1757641838724,-480.0,0.00014359,2]
[384995914,1757641838733,-624.59,0.00014359,2]
[384995916,1757641838742,-480.0,0.00014359,2]
[384995918,1757641838751,-232.93017476,0.00014359,2]
[384995920,1757641838762,-480.0,0.00014359,2]
[384995922,1757641838771,-480.0,0.00014359,2]
[384995924,1757641838780,-480.0,0.00014359,2]
[384995926,1757641838789,-480.0,0.00014359,2]
[384995928,1757641838798,-480.0,0.00014359,2]
[384995930,1757641838808,-480.0,0.00014359,2]
[384995932,1757641838817,-480.0,0.00014359,2]
[384995934,1757641838825,-480.0,0.00014382,2]
[384995936,1757641838834,-508.52645523,0.00014382,2]
[384995938,1757641838843,-480.0,0.00014382,2]
[384995940,1757641838853,-487.23550021,0.00014382,2]
[384995942,1757641838862,-480.0,0.00014382,2]
[384995944,1757641838871,-480.0,0.00014382,2]
[384995946,1757641838882,-480.0,0.00014382,2]
[384995948,1757641838892,-480.0,0.00014382,2]
[384995950,1757641838901,-456.57244821,0.00014382,2]
[384995952,1757641838910,-480.0,0.00014383,2]
[384995954,1757641838919,-157.0,0.0001439,2]
[384995956,1757641838931,-157.0,0.0001439,2]
[384995958,1757641838940,-157.0,0.0001439,2]
[384995960,1757641838950,-157.0,0.0001439,2]
[384995962,1757641838962,-157.0,0.0001439,2]
[384995964,1757641838971,-157.0,0.0001439,2]
[384995966,1757641838980,-157.0,0.0001439,2]
[384995968,1757641838989,-157.0,0.0001439,2]
[384995970,1757641838998,-302.46695065,0.0001439,2]
[384995972,1757641839008,-157.20086106,0.0001439,2]
[384995974,1757641839017,-157.0,0.0001439,2]
[384995976,1757641839026,-157.20362557,0.0001439,2]
[384995978,1757641839035,-157.17073009,0.0001439,2]
[384995980,1757641839044,-157.0,0.0001439,2]
[384995982,1757641839053,-161.68,0.0001439,2]
[384995984,1757641839062,-224.38,0.00014455,2]
[384995986,1757641839071,-163.89,0.00014455,2]
[384995988,1757641839080,-163.89,0.00014455,2]
[384995990,1757641839089,-163.89,0.00014455,2]
[384995992,1757641839098,-163.89,0.00014455,2]
[384995994,1757641839107,-163.89,0.00014455,2]
[384995996,1757641839116,-163.89,0.00014455,2]
[384995998,1757641839125,-163.88,0.00014455,2]
[384996000,1757641839134,-160.0,0.00014463,2]
[384996002,1757641839143,-160.0,0.00014463,2]
[384996004,1757641839152,-530.95967032,0.00014463,2]
[384996006,1757641839161,-217.69300629,0.00014463,2]
[384996008,1757641839170,-233.10680167,0.00014463,2]
[384996010,1757641839179,-160.0,0.00014463,2]
[384996012,1757641839189,-846.96613202,0.00014463,2]
[384996013,1757641839198,-160.0,0.00014463,2]
[384996014,1757641839206,-160.0,0.00014463,2]
[384996015,1757641839215,-160.0,0.00014463,2]
[384996016,1757641839224,-160.0,0.00014464,2]
[384996017,1757641839234,-906.02385137,0.00014533,2]
[384996018,1757641839243,-293.91,0.00014535,2]
[384996019,1757641839252,-293.91,0.00014535,2]
[384996020,1757641839262,-1188.41818307,0.00014599,2]
[384996021,1757641839272,-480.0,0.00014631,2]
[384996022,1757641839281,-480.0,0.00014631,2]
[384996023,1757641839290,-198.60729374,0.00014631,2]
[384996024,1757641839299,-173.98277546,0.00014631,2]
[384996025,1757641839309,-480.0,0.00014632,2]
[384996027,1757641839318,-480.0,0.00014632,2]
[384996028,1757641839328,-480.0,0.00014632,2]
[384996029,1757641839337,-480.0,0.00014632,2]
[384996030,1757641839347,-480.0,0.00014632,2]
[384996032,1757641839356,-1576.27,0.00014632,2]
[384996034,1757641839365,-933.28,0.00014632,2]
[384996036,1757641839375,-480.0,0.00014632,2]
[384996038,1757641839385,-480.0,0.00014632,2]
[384996040,1757641839394,-756.37,0.00014632,2]
[384996042,1757641839404,-477.56461078,0.00014632,2]
[384996045,1757641839413,-489.70432867,0.00014632,2]
[384996047,1757641839422,-522.47489225,0.00014632,2]
[384996049,1757641839431,-1260.59,0.00014632,2]
[384996051,1757641839440,-191.34447641,0.00014632,2]
[384996053,1757641839450,-480.0,0.00014632,2]
[384996055,1757641839459,-282.43647751,0.00014632,2]
[384996057,1757641839468,-480.0,0.00014632,2]
[384996059,1757641839477,-480.0,0.00014632,2]
[384996061,1757641839485,-480.0,0.00014632,2]
[384996063,1757641839494,-831.37,0.00014632,2]
[384996065,1757641839504,-1013.41,0.00014632,2]
[384996067,1757641839513,-480.0,0.00014632,2]
[384996069,1757641839522,-480.0,0.00014632,2]
[384996071,1757641839531,-615.85403955,0.00014632,2]
[384996073,1757641839540,-480.0,0.00014632,2]
[384996075,1757641839549,-546.20853088,0.00014632,2]
[384996077,1757641839559,-480.0,0.00014632,2]
[384996079,1757641839568,-480.0,0.00014632,2]
[384996081,1757641839577,-480.0,0.00014632,2]
[384996083,1757641839586,-1232.83,0.00014632,2]
[384996085,1757641839596,-480.0,0.00014632,2]
[384996087,1757641839605,-480.0,0.00014632,2]
[384996089,1757641839614,-2693.59,0.00014632,2]
[384996091,1757641839623,-480.0,0.00014632,2]
[384996093,1757641839633,-480.0,0.00014632,2]
[384996095,1757641839642,-2811.94,0.00014632,2]
[384996097,1757641839651,-499.29,0.00014632,2]
[384996099,1757641839660,-597.41,0.00014632,2]
[384996101,1757641839670,-560.27738522,0.00014632,2]
[384996103,1757641839679,-7142.53,0.00014632,2]
[384996105,1757641839689,-488.13315215,0.00014633,2]
[384996107,1757641839698,-480.0,0.00014633,2]
[384996109,1757641839707,-480.0,0.00014633,2]
[384996111,1757641839716,-480.0,0.00014633,2]
[384996113,1757641839726,-480.0,0.00014633,2]
[384996115,1757641839735,-480.0,0.00014633,2]
[384996117,1757641839745,-480.0,0.00014633,2]
[384996119,1757641839755,-480.0,0.00014633,2]
[384996121,1757641839764,-480.0,0.00014633,2]
[384996123,1757641839773,-384.32237553,0.00014633,2]
[384996125,1757641839783,-480.0,0.00014633,2]
[384996127,1757641839792,-488.53769875,0.00014633,2]
[384996129,1757641839802,-480.0,0.00014633,2]
[384996131,1757641839811,-480.0,0.00014633,2]
[384996133,1757641839820,-480.0,0.00014633,2]
[384996135,1757641839829,-480.0,0.00014633,2]
[384996137,1757641839838,-480.0,0.00014633,2]
[384996139,1757641839847,-829.62,0.00014633,2]
[384996141,1757641839856,-480.0,0.00014633,2]
[384996143,1757641839866,-488.8727981,0.00014633,2]
[384996145,1757641839876,-480.0,0.00014633,2]
[384996147,1757641839886,-480.0,0.00014633,2]
[384996149,1757641839896,-768.51,0.00014633,2]
[384996151,1757641839906,-480.0,0.00014633,2]
[384996153,1757641839915,-624.59,0.00014633,2]
[384996155,1757641839924,-320.73983263,0.00014633,2]
[384996157,1757641839933,-483.26416565,0.00014633,2]
[384996159,1757641839942,-480.0,0.00014633,2]
[384996161,1757641839952,-480.0,0.00014633,2]
[384996163,1757641839963,-480.0,0.00014633,2]
[384996165,1757641839972,-485.04918327,0.00014633,2]
[384996167,1757641839982,-480.0,0.00014633,2]
[384996169,1757641839991,-480.0,0.00014633,2]
[384996171,1757641840001,-300.0,0.00014643,2]
[384996172,1757641840010,-300.0,0.00014643,2]
[384996174,1757641840019,-300.0,0.00014643,2]
[384996176,1757641840028,-300.0,0.00014643,2]
[384996178,1757641840038,-300.0,0.00014643,2]
[384996180,1757641840047,-300.0,0.00014643,2]
[384996182,1757641840056,-300.0,0.00014643,2]
[384996184,1757641840066,-300.0,0.00014643,2]
[384996186,1757641840075,-300.0,0.00014643,2]
[384996188,1757641840084,-300.0,0.00014643,2]
[384996190,1757641840094,-300.0,0.00014643,2]
[384996193,1757641840103,-300.0,0.00014643,2]
[384996194,1757641840112,-300.0,0.00014643,2]
[384996196,1757641840122,-300.0,0.00014643,2]
[384996198,1757641840131,-300.0,0.00014643,2]
[384996200,1757641840141,-600.0,0.00014644,2]
[384996202,1757641840149,-488.3168992,0.00014656,2]
[384996204,1757641840159,-480.0,0.00014656,2]
[384996206,1757641840168,-166.29455361,0.00014656,2]
[384996208,1757641840177,-87.70546717,0.00014656,2]
[384996211,1757641840191,-392.29453283,0.00014656,2]
[384996213,1757641840200,-480.0,0.00014656,2]
[384996215,1757641840209,-480.0,0.00014656,2]
[384996217,1757641840218,-484.56889581,0.00014657,2]
[384996219,1757641840227,-189.91699073,0.00014664,2]
[384996221,1757641840236,-157.0,0.00014664,2]
[384996223,1757641840245,-158.99501885,0.00014664,2]
[384996225,1757641840254,-157.3750494,0.00014664,2]
[384996227,1757641840262,-157.72908901,0.00014664,2]
[384996229,1757641840272,-289.6561292,0.00014664,2]
[384996231,1757641840281,-157.89019293,0.00014664,2]
[384996233,1757641840290,-188.21237916,0.00014664,2]
[384996235,1757641840299,-157.0,0.00014664,2]
[384996237,1757641840308,-157.0,0.00014664,2]
[384996238,1757641840317,-541.527905,0.00014774,2]
[384996240,1757641840326,-500.93738605,0.00014774,2]
[384996242,1757641840335,-500.49891455,0.00014774,2]
[384996244,1757641840344,-500.0,0.00014774,2]
[384996246,1757641840353,-500.0,0.00014822,2]
[384996248,1757641840363,-500.73339012,0.00014822,2]
[384996250,1757641840372,-500.41247781,0.00014826,2]
[384996252,1757641840380,-378.0045043,0.00014834,2]
[384996254,1757641840390,-500.0,0.00014878,2]
[384996256,1757641840399,-500.0,0.00014878,2]
[384996258,1757641840408,-630.57127444,0.00014878,2]
[384996260,1757641840418,-500.37761929,0.00014878,2]
[384996262,1757641840427,-231.10006037,0.00014905,2]
[384996264,1757641840437,-233.07976247,0.00014905,2]
[384996266,1757641840446,-480.0,0.00014906,2]
[384996268,1757641840455,-480.0,0.00014906,2]
[384996270,1757641840464,-480.0,0.00014906,2]
[384996272,1757641840474,-480.0,0.00014906,2]
[384996274,1757641840484,-480.0,0.00014906,2]
[384996276,1757641840493,-1576.27,0.00014906,2]
[384996278,1757641840502,-933.28,0.00014906,2]
[384996280,1757641840511,-480.0,0.00014906,2]
[384996282,1757641840521,-480.0,0.00014906,2]
[384996284,1757641840531,-756.37,0.00014906,2]
[384996286,1757641840540,-1260.59,0.00014906,2]
[384996288,1757641840549,-191.43862042,0.00014906,2]